fUST/lending_fUST_20250607
["ID","MTS","AMOUNT","RATE_DAILY","PERIOD"]
[364781890,1749240644527,-504.00996284,0.00021917,2]
[364781892,1749240644536,-440.0,0.00021917,2]
[364781894,1749240644546,-440.0,0.00021917,2]
[364781896,1749240644555,-2157.36,0.00021917,2]
[364781898,1749240644565,-1320.35,0.00021917,2]
[364781900,1749240644575,-1236.34,0.00021917,2]
[364781902,1749240644584,-440.0,0.00021917,2]
[364781904,1749240644594,-1278.26,0.00021917,2]
[364781906,1749240644603,-440.0,0.00021917,2]
[364781909,1749240644613,-500.0,0.00021956,2]
[364781910,1749240644622,-500.0,0.00021956,2]
[364781913,1749240644632,-1437.5459281,0.00021969,6]
[364781915,1749240644641,-645.37555078,0.00021998,2]
[364781917,1749240644650,-88935.24,0.00022,7]
[364781918,1749240644660,-11849.89752062,0.00022,7]
[364781921,1749240644669,-436.79,0.00022,2]
[364781922,1749240644679,-1437.5459281,0.00022141,6]
[364781924,1749240644688,-209.018,0.00022168,2]
[364781927,1749240644697,-216.455,0.00022168,2]
[364781928,1749240644707,-962.0,0.00022168,2]
[364781930,1749240644719,-440.0,0.00022191,2]
[364781932,1749240644728,-698.12,0.00022191,2]
[364781934,1749240644738,-604.04,0.00022191,2]
[364781936,1749240644747,-560.01,0.00022191,2]
[364781938,1749240644757,-560.87,0.00022191,2]
[364781940,1749240644767,-516.7,0.00022191,2]
[364781942,1749240644776,-445.81,0.00022191,2]
[364781944,1749240644786,-440.0,0.00022191,2]
[364781947,1749240644796,-1886.05,0.00022191,2]
[364781948,1749240644805,-654.4,0.00022191,2]
[364781951,1749240644815,-925.19,0.00022191,2]
[364781953,1749240644826,-440.0,0.00022191,2]
[364781955,1749240644835,-727.62,0.00022191,2]
[364781957,1749240644845,-462.23,0.00022191,2]
[364781959,1749240644854,-2822.37,0.00022191,2]
[364781961,1749240644864,-440.0,0.00022191,2]
[364781963,1749240644873,-440.0,0.00022191,2]
[364781965,1749240644883,-440.0,0.00022191,2]
[364781967,1749240644892,-440.0,0.00022191,2]
[364781969,1749240644902,-440.0,0.00022191,2]
[364781971,1749240644911,-1200.29,0.00022191,2]
[364781973,1749240644920,-440.0,0.00022191,2]
[364781975,1749240644929,-2670.16,0.00022191,2]
[364781976,1749240644940,-717.71,0.00022191,2]
[364781979,1749240644949,-440.0,0.00022191,2]
[364781981,1749240644960,-916.0,0.00022191,2]
[364781982,1749240644970,-849.72,0.00022191,2]
[364781984,1749240644979,-440.0,0.00022191,2]
[364781986,1749240644988,-440.0,0.00022191,2]
[364781988,1749240644997,-784.07,0.00022191,2]
[364781990,1749240645006,-440.0,0.00022191,2]
[364781992,1749240645015,-2274.67,0.00022191,2]
[364781994,1749240645024,-1117.74,0.00022191,2]
[364781996,1749240645033,-440.0,0.00022191,2]
[364781998,1749240645044,-440.0,0.00022191,2]
[364782000,1749240645053,-2157.36,0.00022191,2]
[364782002,1749240645063,-1320.35,0.00022191,2]
[364782004,1749240645072,-1236.34,0.00022191,2]
[364782006,1749240645081,-440.0,0.00022191,2]
[364782008,1749240645090,-1278.26,0.00022191,2]
[364782010,1749240645099,-440.0,0.00022191,2]
[364782012,1749240645108,-364.7156952,0.00022219,2]
[364782014,1749240645117,-364.7156952,0.00022219,2]
[364782016,1749240645127,-364.7156952,0.00022219,2]
[364782018,1749240645136,-364.7156952,0.00022219,2]
[364782020,1749240645145,-364.7156952,0.00022219,2]
[364782022,1749240645154,-651.0101109,0.00022219,2]
[364782024,1749240645164,-500.0,0.00022271,2]
[364782026,1749240645173,-600.0,0.00022282,2]
[364782028,1749240645182,-500.0,0.00022282,2]
[364782030,1749240645192,-500.0,0.00022282,2]
[364782032,1749240645201,-500.0,0.00022282,2]
[364782034,1749240645210,-500.0,0.00022282,2]
[364782035,1749240645222,-500.0,0.00022287,2]
[364782038,1749240645232,-500.0,0.00022287,2]
[364782039,1749240645241,-495.75,0.000223,7]
[364782041,1749240645251,-803.72,0.000223,7]
[364782043,1749240645260,-1437.5459281,0.00022314,7]
[364782045,1749240645269,-500.0,0.00022333,2]
[364782047,1749240645279,-471.51102347,0.00022333,2]
[364782049,1749240645288,-500.0,0.00022353,2]
[364782051,1749240645298,-500.0,0.00022359,2]
[364782053,1749240645307,-5000.0,0.00022441,2]
[364782055,1749240645316,-200.0,0.00022464,2]
[364782057,1749240645325,-440.0,0.00022465,2]
[364782059,1749240645338,-698.12,0.00022465,2]
[364782061,1749240645347,-604.04,0.00022465,2]
[364782063,1749240645356,-560.01,0.00022465,2]
[364782065,1749240645366,-560.87,0.00022465,2]
[364782067,1749240645375,-500.0,0.00022465,2]
[364782069,1749240645384,-516.7,0.00022465,2]
[364782071,1749240645393,-445.81,0.00022465,2]
[364782074,1749240645403,-440.0,0.00022465,2]
[364782076,1749240645414,-1886.05,0.00022465,2]
[364782079,1749240645425,-654.4,0.00022465,2]
[364782081,1749240645435,-925.19,0.00022465,2]
[364782083,1749240645444,-440.0,0.00022465,2]
[364782084,1749240645453,-727.62,0.00022465,2]
[364782086,1749240645463,-462.23,0.00022465,2]
[364782089,1749240645474,-2822.37,0.00022465,2]
[364782090,1749240645483,-440.0,0.00022465,2]
[364782092,1749240645493,-440.0,0.00022465,2]
[364782094,1749240645503,-285.43,0.00022465,2]
[364782096,1749240645513,-430.0,0.00022465,2]
[364782098,1749240645523,-440.0,0.00022465,2]
[364782100,1749240645533,-1200.29,0.00022465,2]
[364782102,1749240645542,-440.0,0.00022465,2]
[364782104,1749240645552,-2670.16,0.00022465,2]
[364782106,1749240645561,-717.71,0.00022465,2]
[364782108,1749240645570,-354.8170912,0.00022465,2]
[364782110,1749240645579,-916.0,0.00022465,2]
[364782112,1749240645589,-849.72,0.00022465,2]
[364782114,1749240645599,-541.46,0.00022465,2]
[364782116,1749240645608,-440.0,0.00022465,2]
[364782118,1749240645618,-784.07,0.00022465,2]
[364782120,1749240645627,-440.0,0.00022465,2]
[364782122,1749240645636,-2274.67,0.00022465,2]
[364782125,1749240645646,-1117.74,0.00022465,2]
[364782126,1749240645656,-225.2,0.00022465,2]
[364782129,1749240645665,-440.0,0.00022465,2]
[364782131,1749240645675,-2157.36,0.00022465,2]
[364782132,1749240645684,-1320.35,0.00022465,2]
[364782134,1749240645693,-1236.34,0.00022465,2]
[364782136,1749240645703,-440.0,0.00022465,2]
[364782138,1749240645712,-1278.26,0.00022465,2]
[364782140,1749240645723,-440.0,0.00022465,2]
[364782142,1749240645732,-1437.5459281,0.00022486,7]
[364782145,1749240645742,-153.0,0.00022493,2]
[364782146,1749240645751,-153.0,0.00022493,2]
[364782148,1749240645761,-322.2498237,0.00022493,2]
[364782151,1749240645771,-495.7740456,0.00022493,2]
[364782153,1749240645780,-1154.3959266,0.00022493,2]
[364782154,1749240645789,-153.0,0.00022493,2]
[364782156,1749240645799,-153.0,0.00022493,2]
[364782158,1749240645808,-153.0,0.00022493,2]
[364782160,1749240645817,-153.0,0.00022493,2]
[364782162,1749240645827,-1000.0,0.00022504,2]
[364782164,1749240645836,-1000.0,0.00022504,2]
[364782166,1749240645845,-150.0,0.00022543,2]
[364782168,1749240645854,-1437.5459281,0.00022659,7]
[364782170,1749240645864,-200.0,0.00022738,2]
[364782172,1749240645873,-440.0,0.00022739,2]
[364782174,1749240645882,-698.12,0.00022739,2]
[364782176,1749240645891,-604.04,0.00022739,2]
[364782178,1749240645901,-560.01,0.00022739,2]
[364782180,1749240645911,-560.87,0.00022739,2]
[364782182,1749240645921,-516.7,0.00022739,2]
[364782184,1749240645930,-445.81,0.00022739,2]
[364782186,1749240645939,-440.0,0.00022739,2]
[364782188,1749240645949,-1886.05,0.00022739,2]
[364782190,1749240645959,-654.4,0.00022739,2]
[364782192,1749240645968,-925.19,0.00022739,2]
[364782194,1749240645980,-440.0,0.00022739,2]
[364782196,1749240645989,-727.62,0.00022739,2]
[364782198,1749240645999,-462.23,0.00022739,2]
[364782200,1749240646008,-2822.37,0.00022739,2]
[364782202,1749240646018,-250.42866762,0.00022739,2]
[364782204,1749240646027,-440.0,0.00022739,2]
[364782206,1749240646037,-440.0,0.00022739,2]
[364782208,1749240646046,-1200.29,0.00022739,2]
[364782210,1749240646056,-440.0,0.00022739,2]
[364782212,1749240646065,-2670.16,0.00022739,2]
[364782214,1749240646075,-717.71,0.00022739,2]
[364782216,1749240646084,-916.0,0.00022739,2]
[364782218,1749240646093,-849.72,0.00022739,2]
[364782220,1749240646103,-440.0,0.00022739,2]
[364782222,1749240646112,-784.07,0.00022739,2]
[364782224,1749240646121,-440.0,0.00022739,2]
[364782226,1749240646131,-2274.67,0.00022739,2]
[364782228,1749240646140,-1117.74,0.00022739,2]
[364782230,1749240646150,-436.3877575,0.00022739,2]
[364782232,1749240646159,-2157.36,0.00022739,2]
[364782234,1749240646168,-1320.35,0.00022739,2]
[364782237,1749240646178,-1236.34,0.00022739,2]
[364782240,1749240646187,-440.0,0.00022739,2]
[364782243,1749240646196,-1278.26,0.00022739,2]
[364782246,1749240646205,-440.0,0.00022739,2]
[364782249,1749240646214,-587.0,0.00022775,2]
[364782252,1749240646225,-162.0,0.00022776,2]
[364782255,1749240646234,-1000.0,0.00022819,2]
[364782258,1749240646244,-1200.0,0.0002283,2]
[364782261,1749240646253,-1000.0,0.0002283,2]
[364782264,1749240646262,-1000.0,0.0002283,2]
[364782267,1749240646271,-1000.0,0.0002283,2]
[364782270,1749240646281,-1437.5459281,0.00022831,8]
[364782273,1749240646291,-1000.0,0.00022835,2]
[364782275,1749240646300,-1000.0,0.00022835,2]
[364782277,1749240646309,-645.37555078,0.00022898,2]
[364782279,1749240646318,-1000.0,0.00022901,2]
[364782281,1749240646328,-153.0,0.00022904,2]
[364782283,1749240646341,-153.0,0.00022904,2]
[364782285,1749240646350,-153.0,0.00022904,2]
[364782287,1749240646360,-1000.0,0.00022907,2]
[364782289,1749240646369,-1500.0,0.00022954,2]
[364782291,1749240646380,-5000.0,0.00022989,2]
[364782293,1749240646389,-150.0,0.00023,2]
[364782295,1749240646398,-166.06456614,0.00023,2]
[364782297,1749240646407,-1437.5459281,0.00023003,8]
[364782299,1749240646418,-200.0,0.00023012,2]
[364782301,1749240646428,-200.0,0.00023012,2]
[364782303,1749240646437,-440.0,0.00023013,2]
[364782305,1749240646446,-698.12,0.00023013,2]
[364782307,1749240646455,-604.04,0.00023013,2]
[364782309,1749240646464,-560.01,0.00023013,2]
[364782311,1749240646475,-560.87,0.00023013,2]
[364782313,1749240646484,-500.0,0.00023013,2]
[364782315,1749240646495,-516.7,0.00023013,2]
[364782317,1749240646505,-445.81,0.00023013,2]
[364782319,1749240646514,-440.0,0.00023013,2]
[364782321,1749240646523,-1886.05,0.00023013,2]
[364782323,1749240646534,-654.4,0.00023013,2]
[364782325,1749240646543,-925.19,0.00023013,2]
[364782327,1749240646552,-440.0,0.00023013,2]
[364782329,1749240646562,-727.62,0.00023013,2]
[364782331,1749240646571,-462.23,0.00023013,2]
[364782333,1749240646580,-2822.37,0.00023013,2]
[364782335,1749240646589,-328.77926851,0.00023013,2]
[364782337,1749240646598,-178.86953021,0.00023013,2]
[364782339,1749240646608,-1200.29,0.00023013,2]
[364782341,1749240646617,-440.0,0.00023013,2]
[364782354,1749240646729,-2670.16,0.00023013,2]
[364782357,1749240646739,-717.71,0.00023013,2]
[364782359,1749240646749,-916.0,0.00023013,2]
[364782361,1749240646759,-849.72,0.00023013,2]
[364782363,1749240646768,-440.0,0.00023013,2]
[364782365,1749240646777,-784.07,0.00023013,2]
[364782366,1749240646786,-440.0,0.00023013,2]
[364782368,1749240646796,-2274.67,0.00023013,2]
[364782371,1749240646805,-1117.74,0.00023013,2]
[364782373,1749240646815,-2157.36,0.00023013,2]
[364782375,1749240646824,-1320.35,0.00023013,2]
[364782377,1749240646833,-1236.34,0.00023013,2]
[364782378,1749240646843,-162.92917719,0.00023013,2]
[364782379,1749240646851,-1278.26,0.00023013,2]
[364782380,1749240646860,-440.0,0.00023013,2]
[364782381,1749240646870,-1500.0,0.00023052,2]
[364782382,1749240646879,-1500.0,0.00023052,2]
[364782383,1749240646888,-200.0,0.00023099,2]
[364782384,1749240646897,-200.0,0.00023099,2]
[364782385,1749240646906,-88935.24,0.000231,7]
[364782387,1749240646915,-29430.37,0.000231,2]
[364782389,1749240646925,-153.406888,0.000231,7]
[364782391,1749240646934,-1437.5459281,0.00023176,8]
[364782393,1749240646944,-153.0,0.00023178,2]
[364782395,1749240646953,-153.0,0.00023178,2]
[364782397,1749240646962,-151.0,0.00023261,7]
[364782399,1749240646973,-215.0738,0.00023262,2]
[364782401,1749240646983,-200.0,0.00023286,2]
[364782403,1749240646992,-311.63909443,0.00023287,2]
[364782405,1749240647001,-698.12,0.00023287,2]
[364782407,1749240647011,-604.04,0.00023287,2]
[364782409,1749240647020,-560.01,0.00023287,2]
[364782411,1749240647029,-560.87,0.00023287,2]
[364782413,1749240647039,-516.7,0.00023287,2]
[364782415,1749240647047,-445.81,0.00023287,2]
[364782417,1749240647057,-451.60166395,0.00023287,2]
[364782419,1749240647066,-1886.05,0.00023287,2]
[364782421,1749240647075,-654.4,0.00023287,2]
[364782423,1749240647085,-925.19,0.00023287,2]
[364782425,1749240647095,-410.0,0.00023287,2]
[364782427,1749240647104,-727.62,0.00023287,2]
[364782429,1749240647113,-462.23,0.00023287,2]
[364782431,1749240647122,-2822.37,0.00023287,2]
[364782433,1749240647131,-1200.29,0.00023287,2]
[364782435,1749240647140,-440.0,0.00023287,2]
[364782437,1749240647150,-2670.16,0.00023287,2]
[364782439,1749240647159,-717.71,0.00023287,2]
[364782441,1749240647168,-916.0,0.00023287,2]
[364782443,1749240647177,-849.72,0.00023287,2]
[364782445,1749240647187,-440.0,0.00023287,2]
[364782447,1749240647196,-784.07,0.00023287,2]
[364782449,1749240647205,-440.0,0.00023287,2]
[364782451,1749240647215,-2274.67,0.00023287,2]
[364782453,1749240647225,-1117.74,0.00023287,2]
[364782455,1749240647234,-2157.36,0.00023287,2]
[364782457,1749240647244,-1320.35,0.00023287,2]
[364782459,1749240647253,-1236.34,0.00023287,2]
[364782461,1749240647263,-200.0,0.00023287,2]
[364782463,1749240647272,-1278.26,0.00023287,2]
[364782465,1749240647281,-440.0,0.00023287,2]
[364782467,1749240647290,-153.0,0.00023315,2]
[364782469,1749240647299,-182.17196923,0.00023342,2]
[364782471,1749240647309,-1437.5459281,0.00023348,9]
[364782473,1749240647318,-1500.0,0.00023366,2]
[364782475,1749240647328,-1800.0,0.00023378,2]
[364782477,1749240647341,-536.43297428,0.00023378,2]
[364782479,1749240647350,-1500.0,0.00023378,2]
[364782481,1749240647359,-1000.0,0.00023378,2]
[364782483,1749240647368,-500.0,0.00023383,2]
[364782485,1749240647379,-500.0,0.00023383,2]
[364782487,1749240647388,-208.0,0.0002339,7]
[364782489,1749240647397,-678.485777,0.0002341,3]
[364782491,1749240647408,-621.42460089,0.00023425,30]
[364782493,1749240647418,-150.0,0.00023444,2]
[364782495,1749240647427,-1500.0,0.00023449,2]
[364782497,1749240647438,-500.0,0.00023455,2]
[364782499,1749240647447,-6690.60550378,0.000235,2]
[364782501,1749240647456,-1437.5459281,0.00023521,9]
[364782503,1749240647466,-698.12,0.00023561,2]
[364782505,1749240647477,-604.04,0.00023561,2]
[364782507,1749240647486,-560.01,0.00023561,2]
[364782509,1749240647496,-151.0,0.00023561,7]
[364782511,1749240647506,-560.87,0.00023561,2]
[364782513,1749240647515,-504.7392332,0.00023561,2]
[364782515,1749240647524,-516.7,0.00023561,2]
[364782517,1749240647533,-445.81,0.00023561,2]
[364782519,1749240647543,-1886.05,0.00023561,2]
[364782521,1749240647553,-654.4,0.00023561,2]
[364782523,1749240647563,-925.19,0.00023561,2]
[364782525,1749240647573,-727.62,0.00023561,2]
[364782528,1749240647583,-462.23,0.00023561,2]
[364782530,1749240647592,-2822.37,0.00023561,2]
[364782532,1749240647602,-1200.29,0.00023561,2]
[364782534,1749240647612,-440.0,0.00023561,2]
[364782536,1749240647621,-2670.16,0.00023561,2]
[364782538,1749240647630,-717.71,0.00023561,2]
[364782540,1749240647640,-916.0,0.00023561,2]
[364782542,1749240647649,-849.72,0.00023561,2]
[364782544,1749240647659,-440.0,0.00023561,2]
[364782546,1749240647668,-784.07,0.00023561,2]
[364782547,1749240647678,-440.0,0.00023561,2]
[364782550,1749240647688,-2274.67,0.00023561,2]
[364782552,1749240647698,-111.99462109,0.00023561,2]
[364782555,1749240647719,-1005.74537891,0.00023561,2]
[364782557,1749240647730,-594.34706996,0.00023561,2]
[364782559,1749240647742,-607.25581506,0.00023561,2]
[364782561,1749240647754,-445.5183569,0.00023561,2]
[364782564,1749240647765,-510.23875808,0.00023561,2]
[364782566,1749240647775,-212.64519392,0.00023561,2]
[364782573,1749240647834,-1107.70480608,0.00023561,2]
[364782575,1749240647844,-1236.34,0.00023561,2]
[364782577,1749240647854,-1278.26,0.00023561,2]
[364782579,1749240647863,-440.0,0.00023561,2]
[364782581,1749240647873,-495.75,0.000236,7]
[364782583,1749240647882,-2000.0,0.000236,2]
[364782586,1749240647892,-1858.15849228,0.000236,2]
[364782588,1749240647902,-600.0,0.00023605,2]
[364782590,1749240647912,-182.17196923,0.00023644,2]
[364782592,1749240647921,-500.0,0.0002365,2]
[364782594,1749240647931,-1437.5459281,0.00023693,9]
[364782596,1749240647940,-353.3559936,0.00023726,2]
[364782598,1749240647949,-309.8421927,0.00023726,2]
[364782600,1749240647959,-1150.0,0.0002378,5]
[364782602,1749240647968,-2481.56161147,0.00023799,2]
[364782604,1749240647979,-645.37555078,0.00023799,2]
[364782606,1749240647989,-803.72,0.000238,7]
[364782608,1749240647998,-17343.4864323,0.000238,4]
[364782610,1749240648007,-1000.0,0.000238,5]
[364782612,1749240648017,-217.15466949,0.000238,2]
[364782614,1749240648027,-151.0,0.00023835,7]
[364782616,1749240648036,-698.12,0.00023835,2]
[364782618,1749240648046,-604.04,0.00023835,2]
[364782620,1749240648055,-560.01,0.00023835,2]
[364782622,1749240648065,-560.87,0.00023835,2]
[364782624,1749240648074,-516.7,0.00023835,2]
[364782626,1749240648083,-445.81,0.00023835,2]
[364782628,1749240648092,-1886.05,0.00023835,2]
[364782630,1749240648103,-654.4,0.00023835,2]
[364782632,1749240648113,-925.19,0.00023835,2]
[364782634,1749240648123,-727.62,0.00023835,2]
[364782636,1749240648133,-2822.37,0.00023835,2]
[364782638,1749240648143,-191.04985663,0.00023835,2]
[364782640,1749240648155,-1009.24014337,0.00023835,2]
[364782642,1749240648163,-440.0,0.00023835,2]
[364782644,1749240648172,-1875.41119765,0.00023835,2]
[364782647,1749240648184,-794.74880235,0.00023835,2]
[364782649,1749240648193,-717.71,0.00023835,2]
[364782651,1749240648203,-916.0,0.00023835,2]
[364782653,1749240648212,-849.72,0.00023835,2]
[364782655,1749240648222,-440.0,0.00023835,2]
[364782657,1749240648231,-784.07,0.00023835,2]
[364782659,1749240648241,-253.53408432,0.00023835,2]
[364782661,1749240648250,-2274.67,0.00023835,2]
[364782663,1749240648259,-1117.74,0.00023835,2]
[364782665,1749240648269,-1723.92558655,0.00023835,2]
[364782692,1749240648524,-440.0,0.00019178,2]
[364782694,1749240648534,-440.0,0.00019452,2]
[364782696,1749240648544,-440.0,0.00019726,2]
[364782698,1749240648553,-440.0,0.0002,2]
[364782700,1749240648563,-370.0,0.00020273,2]
[364782703,1749240648573,-639.43,0.00020811,3]
[364782705,1749240648582,-433.43441345,0.00023835,2]
[364782707,1749240648591,-1320.35,0.00023835,2]
[364782709,1749240648600,-1236.34,0.00023835,2]
[364782711,1749240648609,-1278.26,0.00023835,2]
[364782713,1749240648618,-440.0,0.00023835,2]
[364782715,1749240648628,-500.0,0.0002385,2]
[364782717,1749240648637,-600.0,0.00023851,2]
[364782718,1749240648646,-1437.5459281,0.00023866,10]
[364782720,1749240648656,-2481.56161146,0.00023871,2]
[364782723,1749240648665,-150.0,0.00023873,2]
[364782724,1749240648675,-21498.48415216,0.00023888,2]
[364782727,1749240648686,-8278.69823251,0.00023888,2]
[364782733,1749240648738,-440.0,0.00019178,2]
[364782735,1749240648748,-348.20026824,0.0002199,10]
[364782738,1749240648760,-542.22973176,0.0002199,10]
[364782740,1749240648770,-1778.67523744,0.00023888,2]
[364782742,1749240648782,-1717.0,0.00023888,2]
[364783177,1749240727441,150.0,0.00018729,2]
[364783181,1749240798610,150.0,0.00018731,2]
[364783185,1749240893710,391.315511,0.00013699,2]
[364783187,1749240922579,181.559068,0.00018596,2]
[364783188,1749240922785,181.559068,0.00018596,120]
[364783190,1749240941579,150.0,0.000187,2]
[364783195,1749241075621,224.300335,0.00018449,2]
[364783196,1749241122433,4147.4820122,0.00018406,2]
[364783200,1749241222221,319.5167958,0.00018387,2]
[364783202,1749241271199,162.0260999,0.00018241,2]
[364783203,1749241294628,150.0,0.00018962,2]
[364783205,1749241360921,150.0,0.00018813,2]
[364783206,1749241363579,1620.1432373,0.0001835,2]
[364783224,1749241608071,831.33587014,0.000189,2]
[364783232,1749241643138,-174.73305558,0.00019078,2]
[364783233,1749241643160,-300.0,0.00019113,2]
[364783234,1749241643182,-300.0,0.00019113,2]
[364783235,1749241643205,-5826.54768487,0.00019114,2]
[364783236,1749241644091,-10228.76985878,0.00019114,2]
[364783309,1749241832080,-2508.23760735,0.00019114,2]
[364783328,1749241832249,-6336.444849,0.00019114,2]
[364783330,1749241832259,-232.9049283,0.00019166,2]
[364783332,1749241832268,-300.0,0.00019176,2]
[364783334,1749241832278,-500.0,0.00019177,2]
[364783336,1749241832288,-500.0,0.00019177,2]
[364783338,1749241832298,-500.0,0.00019177,2]
[364783340,1749241832308,-576.41445143,0.00019177,2]
[364783342,1749241832317,-500.0,0.00019177,2]
[364783344,1749241832328,-440.0,0.00019178,2]
[364783346,1749241832337,-431.01280067,0.00019178,2]
[364783348,1749241832347,-209.92956516,0.00019178,2]
[364783351,1749241832359,-230.07043484,0.00019178,2]
[364783353,1749241832368,-414.0,0.00019178,2]
[364783355,1749241832379,-440.0,0.00019178,2]
[364783357,1749241832388,-370.0,0.00019178,2]
[364783359,1749241832397,-430.0,0.00019178,2]
[364783362,1749241832408,-440.0,0.00019178,2]
[364783364,1749241832417,-430.0,0.00019178,2]
[364783366,1749241832426,-420.0,0.00019178,2]
[364783368,1749241832436,-440.0,0.00019178,2]
[364783370,1749241832445,-390.0,0.00019178,2]
[364783372,1749241832455,-430.0,0.00019178,2]
[364783374,1749241832464,-430.0,0.00019178,2]
[364783376,1749241832473,-481.09,0.00019178,2]
[364783378,1749241832482,-430.0,0.00019178,2]
[364783380,1749241832491,-510.0,0.00019178,2]
[364783382,1749241832500,-430.0,0.00019178,2]
[364783384,1749241832509,-162.48177066,0.00019178,2]
[364783386,1749241832519,-430.0,0.00019178,2]
[364783388,1749241832528,-440.0,0.00019178,2]
[364783390,1749241832537,-430.0,0.00019178,2]
[364783392,1749241832546,-430.0,0.00019178,2]
[364783394,1749241832555,-270.0,0.00019178,2]
[364783396,1749241832564,-213.37467369,0.00019178,2]
[364783398,1749241832573,-440.0,0.00019178,2]
[364783400,1749241832582,-420.0,0.00019178,2]
[364783402,1749241832591,-325.79861092,0.00019178,2]
[364783404,1749241832600,-430.0,0.00019178,2]
[364783406,1749241832610,-440.0,0.00019178,2]
[364783408,1749241832619,-440.0,0.00019178,2]
[364783410,1749241832629,-420.0,0.00019178,2]
[364783412,1749241832638,-430.0,0.00019178,2]
[364783414,1749241832647,-440.0,0.00019178,2]
[364783416,1749241832656,-440.0,0.00019178,2]
[364783418,1749241832665,-440.0,0.00019178,2]
[364783419,1749241832675,-440.0,0.00019178,2]
[364783420,1749241832684,-440.0,0.00019178,2]
[364783421,1749241832693,-440.0,0.00019178,2]
[364783422,1749241832702,-279.49,0.00019178,2]
[364783423,1749241832711,-163.66305584,0.00019178,2]
[364783424,1749241832720,-440.0,0.00019178,2]
[364783425,1749241832730,-303.97387247,0.00019178,2]
[364783426,1749241832739,-430.0,0.00019178,2]
[364783427,1749241832748,-440.0,0.00019178,2]
[364783428,1749241832759,-440.0,0.00019178,2]
[364783429,1749241832772,-333.56687481,0.00019178,2]
[364783430,1749241832781,-440.0,0.00019178,2]
[364783431,1749241832791,-440.0,0.00019178,2]
[364783432,1749241832801,-440.0,0.00019178,2]
[364783433,1749241832810,-440.0,0.00019178,2]
[364783434,1749241832820,-440.0,0.00019178,2]
[364783435,1749241832829,-440.0,0.00019178,2]
[364783436,1749241832839,-420.0,0.00019178,2]
[364783437,1749241832848,-432.38763229,0.00019178,2]
[364783448,1749241833001,-430.0,0.00019178,2]
[364783450,1749241833011,-440.0,0.00019178,2]
[364783452,1749241833022,-430.0,0.00019178,2]
[364783455,1749241833032,-440.0,0.00019178,2]
[364783457,1749241833041,-440.0,0.00019178,2]
[364783459,1749241833051,-410.34342262,0.00019178,2]
[364783460,1749241833061,-500.0,0.00019178,2]
[364783461,1749241833071,-500.0,0.00019178,2]
[364783462,1749241833081,-500.0,0.00019178,2]
[364783464,1749241833091,-430.0,0.00019178,2]
[364783466,1749241833101,-430.0,0.00019178,2]
[364783468,1749241833111,-310.0,0.00019178,2]
[364783470,1749241833120,-430.0,0.00019178,2]
[364783472,1749241833130,-440.0,0.00019178,2]
[364783474,1749241833139,-420.0,0.00019178,2]
[364783476,1749241833149,-430.0,0.00019178,2]
[364783479,1749241833159,-440.0,0.00019178,2]
[364783481,1749241833169,-404.45371331,0.00019178,2]